bitfinex-derivatives/quotes_SOLF0:USTF0_20250221
["timestamp","ask_amount","ask_price","bid_price","bid_amount"]
[1740131271203,15.3737109,177.94,177.88,0.04074615]
[1740131271404,15.3737109,177.94,177.9,5.6196]
[1740131271604,20.9923109,177.94,177.9,5.6196]
[1740131272310,5.619,177.93,177.89,0.04333101]
[1740131272710,5.6189,177.93,177.9,5.6196]
[1740131273613,15.3737109,177.94,177.89,0.04333101]
[1740131275207,20.9925109,177.94,177.9,5.6196]
[1740131275413,20.9925109,177.94,177.89,0.04333101]
[1740131275817,5.6189,177.93,177.91,5.6195]
[1740131276015,15.3737109,177.94,177.91,5.6195]
[1740131277419,20.9924109,177.94,177.91,5.6195]
[1740131278014,15.3737109,177.94,177.92,5.6192]
[1740131278419,15.3737109,177.94,177.89,0.04333101]
[1740131278608,20.9915109,177.97,177.89,0.04333101]
[1740131278807,15.3737109,177.97,177.89,0.04333101]
[1740131279207,20.9916109,177.97,177.94,5.6185]
[1740131279413,15.3737109,177.97,177.86,5.9261]
[1740131279614,5.6191,177.93,177.86,5.9261]
[1740131279817,15.3737109,177.94,177.9,0.038069]
[1740131280113,15.3737109,177.91,177.77,5.4111]
[1740131280318,15.3737109,177.88,177.77,8.5038]
[1740131280915,15.3737109,177.93,177.77,8.5038]
[1740131281116,15.3737109,177.85,177.73,2.5924]
[1740131281318,5.6218,177.84,177.83,0.0414888]
[1740131281515,20.9955109,177.84,177.79,5.6232]
[1740131281714,15.3737109,177.87,177.75,15.3737109]
[1740131281911,15.3737109,177.87,177.8,5.6227]
[1740131282719,5.6218,177.84,177.82,0.03552762]
[1740131283222,5.6221,177.83,177.73,2.5924]
[1740131283420,15.3737109,177.84,177.73,2.5924]
[1740131283620,15.3737109,177.81,177.72,3.0927]
[1740131284217,0.03751133,177.78,177.72,3.0927]
[1740131284420,0.03751133,177.78,177.75,0.0407778]
[1740131284616,0.03751133,177.78,177.75,5.6652778]
[1740131284824,0.03751133,177.78,177.75,0.0407778]
[1740131285024,1.133e-05,177.78,177.75,0.0407778]
[1740131285521,1.133e-05,177.78,177.77,5.624]
[1740131286420,1.133e-05,177.78,177.75,0.0407778]
[1740131286827,1.133e-05,177.78,177.77,5.624]
[1740131287923,1.133e-05,177.78,177.75,0.0407778]
[1740131288320,1.133e-05,177.78,177.77,5.624]
[1740131288723,1.133e-05,177.78,177.75,0.0407778]
[1740131288926,1.133e-05,177.78,177.76,5.624]
[1740131289124,1.133e-05,177.78,177.75,0.0407778]
[1740131291323,1.133e-05,177.78,177.77,5.624]
[1740131292018,1.133e-05,177.78,177.77,77.2477109]
[1740131292322,2.6026,177.92,177.86,5.6211]
[1740131292521,2.6026,177.92,177.77,71.6237109]
[1740131292522,34.82337702,177.93,177.83,15.3737109]
[1740131292722,34.82337702,177.93,177.89,5.6199]
[1740131293027,34.82337702,177.93,177.8,15.3737109]
[1740131293326,0.04064497,177.88,177.85,0.04299996]
[1740131294417,0.04064497,177.88,177.87,5.6208]
[1740131297229,15.42974695,178.0,177.85,0.04299996]
[1740131297429,15.3737109,177.98,177.86,15.3737109]
[1740131297625,5.6188,177.94,177.84,2.6798]
[1740131297825,5.6188,177.94,177.89,5.6201]
[1740131298324,5.6182,177.96,177.91,5.6194]
[1740131298529,0.03814965,177.93,177.9,0.03927447]
[1740131298929,0.03814965,177.93,177.91,5.6195]
[1740131300730,0.03814965,177.93,177.9,0.03927447]
[1740131301733,0.03814965,177.93,177.92,5.6192]
[1740131309440,4.965e-05,177.93,177.92,5.6192]
[1740131313247,4.965e-05,177.93,177.92,61.8192]
[1740131313643,4.965e-05,177.93,177.92,77.1929109]
[1740131314449,15.3737109,178.05,178.01,5.6161]
[1740131315045,15.3737109,178.05,178.0,5.6166]
[1740131315448,15.3737109,178.05,178.01,0.03663205]
[1740131315848,20.9889109,178.05,178.01,0.03663205]
[1740131317048,15.3737109,178.05,178.01,0.03663205]
[1740131317550,15.3737109,178.05,178.03,5.6155]
[1740131317746,15.3737109,178.05,178.01,0.03663205]
[1740131318142,15.3737109,178.05,178.04,5.6154]
[1740131318445,15.3737109,178.05,178.01,0.03663205]
[1740131318646,15.3737109,178.08,178.01,0.03663205]
[1740131318846,20.9879109,178.08,178.03,5.6157]
[1740131319149,20.9879109,178.08,178.01,0.03663205]
[1740131319150,15.3737109,178.08,178.01,0.03663205]
[1740131319351,5.6147,178.07,178.02,5.6158]
[1740131319651,15.3737109,178.08,178.02,5.6158]
[1740131319847,5.6148,178.06,178.03,5.6157]
[1740131320048,5.6148,178.06,178.01,0.03663205]
[1740131321448,5.6148,178.06,178.03,5.6157]
[1740131322352,15.3737109,178.06,178.01,0.03663205]
[1740131322553,15.3737109,178.03,178.01,0.03663205]
[1740131322753,20.9896109,178.03,178.01,0.03663205]
[1740131322950,15.3737109,178.03,178.01,0.03663205]
[1740131323254,5.6167,178.0,177.96,2.3782]
[1740131323449,20.9904109,178.0,177.96,2.3782]
[1740131324050,15.3737109,178.0,177.91,4.7009]
[1740131324247,15.41655092,178.0,177.96,0.0424131]
[1740131325054,15.41655092,178.0,177.97,5.6174]
[1740131325655,15.41655092,178.0,177.97,5.6176]
[1740131326457,15.41655092,178.0,177.96,0.0424131]
[1740131328056,0.04284002,178.0,177.96,0.0424131]
[1740131330360,0.04284002,178.0,177.98,5.6171]
[1740131331057,0.04284002,178.0,177.96,0.0424131]
[1740131331759,0.04284002,178.0,177.98,5.6171]
[1740131333762,5.65964002,178.0,177.98,5.6171]
[1740131333957,5.65964002,178.0,177.96,0.0424131]
[1740131334154,5.65964002,178.0,177.97,5.6175]
[1740131334962,0.04284002,178.0,177.98,5.6171]
[1740131335361,15.41655092,178.0,177.96,0.0424131]
[1740131336259,5.6171,177.99,177.96,5.6602131]
[1740131337259,0.04284002,178.0,177.99,5.617]
[1740131337658,0.04284002,178.0,177.97,5.6174]
[1740131337863,0.04284002,178.0,177.96,0.0424131]
[1740131338266,0.04284002,178.0,177.99,5.617]
[1740131338664,9.86504627,178.0,177.96,0.0424131]
[1740131338961,9.82220625,177.98,177.96,0.0424131]
[1740131339562,15.43970625,177.98,177.96,0.0424131]
[1740131339962,9.82220625,177.98,177.96,5.6601131]
[1740131340263,9.82220625,177.98,177.96,0.0424131]
[1740131340864,56.19,177.97,177.86,9.82220625]
[1740131341066,9.82220625,177.93,177.86,9.82220625]
[1740131341265,9.82220625,177.93,177.92,5.6192]
[1740131341862,9.82220625,177.93,177.91,5.6194]
[1740131342062,9.82220625,177.93,177.91,5.6596327]
[1740131342460,5.6192,177.92,177.91,0.0402327]
[1740131342668,56.21,177.92,177.82,4.0791]
[1740131342867,9.82220625,177.87,177.82,4.0791]
[1740131343168,9.82220625,177.88,177.82,4.0791]
[1740131343763,0.04084929,177.87,177.85,5.6213]
[1740131344067,9.82220625,177.86,177.83,0.03586236]
[1740131344669,0.04084929,177.87,177.83,0.03586236]
[1740131344869,0.04084929,177.87,177.83,5.65786236]
[1740131345068,0.04084929,177.87,177.83,0.03586236]
[1740131345262,20.99228714,177.85,177.83,0.03586236]
[1740131345461,20.99228714,177.85,177.77,3.9933]
[1740131345462,15.37078714,177.85,177.77,3.9933]
[1740131345666,15.37078714,177.82,177.77,1.9708]
[1740131346766,0.03705675,177.81,177.78,0.03672559]
[1740131347873,0.03705675,177.81,177.8,5.623]
[1740131351673,0.03705675,177.81,177.79,5.6233]
[1740131351865,0.03705675,177.81,177.78,0.03672559]
[1740131352473,5.66005675,177.81,177.78,0.03672559]
[1740131352673,0.03705675,177.81,177.78,0.03672559]
[1740131353878,0.03705675,177.81,177.79,5.6231]
[1740131355279,0.03705675,177.81,177.78,0.03672559]
[1740131356374,0.03705675,177.81,177.8,5.623]
[1740131358875,193.0,177.87,177.78,0.03672559]
[1740131359185,20.99148714,177.88,177.84,5.6215]
[1740131359688,15.37078714,177.88,177.85,5.6212]
[1740131360180,15.41245754,177.88,177.85,5.6571856]
[1740131360777,21.03295754,177.88,177.85,5.6571856]
[1740131362881,5.6208,177.87,177.85,0.0359856]
[1740131364680,15.41245754,177.88,177.85,0.0359856]
[1740131364978,15.41245754,177.88,177.73,13.2568]
[1740131364979,56.22,177.87,177.73,28.62758714]
[1740131365179,15.37078714,177.82,177.74,2.1278]
[1740131365980,0.03869252,177.8,177.76,0.03869514]
[1740131366180,5.66169252,177.8,177.77,5.6237]
[1740131366380,0.03869252,177.8,177.76,0.03869514]
[1740131367084,0.03869252,177.8,177.79,5.6233]
[1740131367279,15.37078714,177.88,177.79,56.24]
[1740131367484,15.37078714,177.88,177.78,15.37078714]
[1740131367984,15.37078714,177.88,177.85,5.6211]
[1740131368387,15.41290268,177.88,177.85,5.65938074]
[1740131368784,15.41290268,177.88,177.85,0.03828074]
[1740131369888,5.6208,177.87,177.85,0.03828074]
[1740131370082,15.41290268,177.88,177.85,0.03828074]
[1740131370887,56.22,177.87,177.8,5.6228]
[1740131371085,15.37078714,177.83,177.74,2.1278]
[1740131371485,15.37078714,177.86,177.75,15.37078714]
[1740131371989,0.03670835,177.82,177.79,0.03552681]
[1740131372783,5.6205,177.88,177.85,5.6213]
[1740131372989,15.37078714,177.89,177.8,3.8503]
[1740131373288,20.99118714,177.89,177.85,5.6212]
[1740131373480,15.37078714,177.89,177.85,5.6212]
[1740131373988,5.6207,177.88,177.85,5.66286164]
[1740131374485,5.6207,177.88,177.86,5.6211]
[1740131374689,5.6207,177.88,177.85,0.04166164]
[1740131375085,15.40669218,177.89,177.85,0.04166164]
[1740131375288,15.40669218,177.89,177.85,5.66296164]
[1740131375985,5.6205,177.88,177.85,5.66296164]
[1740131376579,5.6209,177.87,177.85,5.66296164]
[1740131376889,15.40669218,177.89,177.85,0.04166164]
[1740131377191,5.6207,177.88,177.85,5.66286164]
[1740131377792,5.6208,177.87,177.85,5.66286164]
[1740131380090,5.6206,177.88,177.85,0.04166164]
[1740131380288,15.40669218,177.89,177.85,0.04166164]
[1740131380983,5.6205,177.88,177.86,5.6209]
[1740131381189,15.40669218,177.89,177.85,0.04166164]
[1740131381490,15.40669218,177.89,177.87,5.6205]
[1740131381988,15.40669218,177.89,177.85,0.04166164]
[1740131383192,5.04e-06,177.89,177.85,0.04166164]
[1740131383392,5.04e-06,177.89,177.88,5.6205]
[1740131383592,5.04e-06,177.89,177.85,1.98206164]
[1740131384998,15.37078714,177.87,177.85,0.04166164]
[1740131385493,5.04e-06,177.89,177.85,0.04166164]
[1740131386687,5.04e-06,177.89,177.88,5.6205]
[1740131387893,5.04e-06,177.89,177.88,63.7862]
[1740131388594,5.04e-06,177.89,177.88,7.5662]
[1740131388796,5.04e-06,177.89,177.88,63.7862]
[1740131390892,5.04e-06,177.89,177.88,7.5662]
[1740131392688,5.04e-06,177.89,177.85,15.41244878]
[1740131392689,5.04e-06,177.89,177.85,0.04166164]
[1740131393097,15.37079218,177.89,177.85,0.04166164]
[1740131394100,20.99099218,177.89,177.86,5.621]
[1740131394397,15.37079218,177.89,177.85,0.04166164]
[1740131395801,5.04e-06,177.89,177.88,5.6205]
[1740131401010,5.04e-06,177.89,177.85,0.04166164]
[1740131402315,5.04e-06,177.89,177.87,5.6206]
[1740131402710,5.04e-06,177.89,177.85,0.04166164]
[1740131403915,5.04e-06,177.89,177.88,5.6205]
[1740131404321,5.04e-06,177.89,177.88,61.8405]
[1740131404817,5.04e-06,177.89,177.88,67.7983]
[1740131405809,5.04e-06,177.89,177.88,7.694]
[1740131407221,5.04e-06,177.89,177.88,63.914]
[1740131408022,5.04e-06,177.89,177.88,65.9443]
[1740131414218,26.59052627,178.02,177.9,11.2393]
[1740131414415,26.59052627,178.02,177.92,15.37078714]
[1740131414621,11.21973913,178.02,177.92,15.37078714]
[1740131414919,0.89040905,178.03,178.02,5.6161]
[1740131415323,0.03775955,178.04,178.03,5.6157]
[1740131423221,5.955e-05,178.04,178.03,5.6157]
[1740131423818,193.0,178.17,178.03,61.7857]
[1740131424023,442.74376358,178.19,178.07,15.37078714]
[1740131424221,5.6116,178.17,178.05,15.37078714]
[1740131424725,5.6111,178.18,178.06,1.9655]
[1740131424923,0.03998406,178.14,178.1,0.03579413]
[1740131425523,0.03998406,178.14,178.13,5.6126]
[1740131426129,0.03998406,178.14,178.1,0.03579413]
[1740131427231,0.03998406,178.14,178.11,5.6131]
[1740131427431,0.03998406,178.14,178.1,0.03579413]
[1740131429235,5.6129,178.13,178.1,0.03579413]
[1740131430125,0.03998406,178.14,178.1,0.03579413]
[1740131430630,15.37078714,178.12,178.1,0.03579413]
[1740131430829,15.37078714,178.12,177.99,17.38088714]
[1740131431023,15.37078714,178.09,178.04,5.6152]
[1740131431230,15.37078714,178.09,177.99,2.0101]
[1740131431431,5.6148,178.07,177.99,2.0101]
[1740131431629,15.37078714,178.09,177.99,2.0101]
[1740131432034,0.03611616,178.06,178.02,0.04182451]
[1740131432434,0.03611616,178.06,178.04,5.6154]
[1740131433534,0.03611616,178.06,178.02,0.04182451]
[1740131434539,0.03611616,178.06,178.03,5.6155]
[1740131434835,5.6157,178.03,178.02,0.04182451]
[1740131435025,15.37078714,178.03,177.94,1.7608]
[1740131435231,5.6161,178.02,177.98,5.6171]
[1740131435430,5.6161,178.02,177.94,1.7608]
[1740131435636,5.6161,178.02,177.98,5.6171]
[1740131436133,5.65832431,178.02,177.98,5.65740827]
[1740131436436,5.65832431,178.02,177.99,5.6169]
[1740131436938,0.04222431,178.02,177.98,0.04030827]
[1740131437137,15.37078714,178.0,177.98,0.04030827]
[1740131440039,15.37078714,178.0,177.98,5.65760827]
[1740131440437,15.37078714,178.0,177.98,0.04030827]
[1740131440635,0.04222431,178.02,177.98,0.04030827]
[1740131442234,0.04222431,178.02,177.98,5.65740827]
[1740131442440,0.04222431,178.02,177.98,0.04030827]
[1740131442738,15.37078714,178.0,177.98,0.04030827]
[1740131443741,15.37078714,178.0,177.98,5.65730827]
[1740131443943,0.04222431,178.02,177.98,0.04030827]
[1740131445934,5.6167,178.0,177.98,0.04030827]
[1740131446134,0.04222431,178.02,177.98,0.04030827]
[1740131447242,0.04222431,178.02,178.01,5.6164]
[1740131459349,15.37078714,178.09,178.07,5.6143]
[1740131459549,15.37078714,178.09,177.99,18.83728714]
[1740131459851,15.37078714,178.02,177.9,56.08604567]
[1740131460151,15.37078714,178.02,177.94,3.5528]
[1740131460553,0.04190064,178.0,177.96,5.65381923]
[1740131460954,0.04190064,178.0,177.96,0.03611923]
[1740131461153,0.04190064,178.0,177.99,5.617]
[1740131462251,0.04190064,178.0,177.96,0.03611923]
[1740131462252,15.41268778,178.0,177.96,0.03611923]
[1740131462854,0.04190064,178.0,177.96,0.03611923]
[1740131463456,0.04190064,178.0,177.99,5.617]
[1740131463853,0.04190064,178.0,177.96,0.03611923]
[1740131464950,5.6171,177.99,177.96,0.03611923]
[1740131465254,15.41268778,178.0,177.96,0.03611923]
[1740131465461,21.02948778,178.0,177.96,0.03611923]
[1740131465753,15.41268778,178.0,177.96,0.03611923]
[1740131466159,21.02948778,178.0,177.96,5.65381923]
[1740131466556,5.6172,177.99,177.96,0.03611923]
[1740131466754,5.6172,177.99,177.96,5.65401923]
[1740131467261,15.41268778,178.0,177.96,5.65401923]
[1740131467559,21.02948778,178.0,177.96,5.65401923]
[1740131468254,21.02948778,178.0,177.96,0.03611923]
[1740131468464,21.02948778,178.0,177.97,5.6176]
[1740131468661,5.617,177.99,177.96,0.03611923]
[1740131468958,5.617,177.99,177.96,5.65391923]
[1740131469756,15.41268778,178.0,177.96,5.65391923]
[1740131469955,5.6173,177.99,177.96,5.65391923]
[1740131470561,15.41268778,178.0,177.96,0.03611923]
[1740131472165,6.4e-07,178.0,177.96,0.03611923]
[1740131472369,6.4e-07,178.0,177.97,15.37078714]
[1740131472663,6.4e-07,178.0,177.99,5.617]
[1740131476366,6.4e-07,178.0,177.99,61.797]
[1740131480168,6.4e-07,178.0,177.99,5.617]
[1740131481270,6.4e-07,178.0,177.98,5.6172]
[1740131481472,6.4e-07,178.0,177.96,0.03611923]
[1740131481770,6.4e-07,178.0,177.99,5.617]
[1740131482470,6.4e-07,178.0,177.96,0.03611923]
[1740131483371,6.4e-07,178.0,177.99,5.617]
[1740131483582,56.18000064,178.0,177.99,5.617]
[1740131484983,6.4e-07,178.0,177.99,5.617]
[1740131487586,6.4e-07,178.0,177.99,61.797]
[1740131488088,15.37078714,178.11,177.99,56.18]
[1740131488288,15.37078714,178.11,178.01,15.37078714]
[1740131488587,15.37078714,178.11,178.02,1.8163]
[1740131488786,15.37078714,178.11,178.08,5.6139]
[1740131489390,15.41373271,178.11,178.08,5.65553427]
[1740131489693,21.02703271,178.11,178.08,0.04163427]
[1740131490094,15.41373271,178.11,178.08,5.65573427]
[1740131490892,15.41373271,178.11,178.08,0.04163427]
[1740131491097,21.02693271,178.11,178.08,0.04163427]
[1740131492397,5.6135,178.1,178.08,0.04163427]
[1740131493795,5.6139,178.09,178.08,0.04163427]
[1740131494294,5.6138,178.1,178.08,0.04163427]
[1740131495499,15.41373271,178.11,178.08,5.65563427]
[1740131495898,5.6135,178.1,178.08,0.04163427]
[1740131496603,21.02713271,178.11,178.08,0.04163427]
[1740131496796,15.41373271,178.11,178.08,0.04163427]
[1740131496996,5.6139,178.09,178.08,0.04163427]
[1740131497198,56.15,178.1,177.98,15.37078714]
[1740131497395,15.37078714,178.08,178.04,5.6154]
[1740131497599,20.98508714,178.08,178.04,5.6154]
[1740131498103,20.98508714,178.08,178.05,5.615]
[1740131498303,21.02629014,178.08,178.05,5.65060842]
[1740131498497,15.41199014,178.08,178.05,0.03560842]
[1740131499199,5.6147,178.07,178.05,0.03560842]
[1740131499801,21.02629014,178.08,178.05,5.65070842]
[1740131500503,15.41199014,178.08,178.05,0.03560842]
[1740131500698,5.6147,178.07,178.05,0.03560842]
[1740131501004,15.41199014,178.08,178.05,0.03560842]
[1740131501205,5.6148,178.06,178.05,0.03560842]
[1740131501799,5.6169,178.0,177.9,147.06]
[1740131502099,20.98768714,178.0,177.93,1.7304]
[1740131502300,20.98768714,178.0,177.96,5.6178]
[1740131503004,21.02713562,178.0,177.96,0.03732317]
[1740131503303,15.41023562,178.0,177.96,0.03732317]
[1740131503899,15.41023562,178.0,177.97,5.6174]
[1740131504504,15.41023562,178.0,177.96,0.03732317]
[1740131504505,15.41023562,178.0,177.98,5.6173]
[1740131505098,15.41023562,178.0,177.96,0.03732317]
[1740131505300,0.03944848,178.0,177.99,5.617]
[1740131505504,15.37078714,178.07,177.96,0.03732317]
[1740131505705,15.37078714,178.07,178.04,5.6152]
[1740131506003,15.37078714,178.07,177.95,15.37078714]
[1740131506203,15.37078714,178.07,178.05,5.615]
[1740131506404,15.37078714,178.07,177.95,15.37078714]
[1740131506709,0.0421437,178.03,178.02,5.6159]
[1740131506905,0.0421437,178.03,177.99,0.04029441]
[1740131507204,0.0421437,178.03,177.99,0.03793079]
[1740131507407,5.6579437,178.03,177.99,5.65473079]
[1740131507906,5.6579437,178.03,178.0,5.6167]
[1740131508302,0.0421437,178.03,177.99,0.03793079]
[1740131510509,0.0421437,178.03,178.02,5.6161]
[1740131511906,4.37e-05,178.03,178.02,5.6161]
[1740131516612,4.37e-05,178.03,178.02,61.7861]
[1740131517011,4.37e-05,178.03,178.02,5.6161]
[1740131520415,4.37e-05,178.03,178.0,1.7641]
[1740131520613,4.37e-05,178.03,178.01,5.6161]
[1740131520813,15.37078714,178.02,177.99,0.03793079]
[1740131521214,15.37078714,178.02,178.01,5.6164]
[1740131521715,4.37e-05,178.03,178.02,5.6161]
[1740131523616,4.37e-05,178.03,178.01,5.6162]
[1740131524419,5.6167,178.0,177.99,0.03793079]
[1740131524619,86.92157428,178.02,177.93,1.8008]
[1740131524813,15.37078714,177.99,177.93,1.8008]
[1740131525815,0.04214193,177.98,177.94,0.03742781]
[1740131526213,0.04214193,177.98,177.97,5.6176]
[1740131526618,0.04214193,177.98,177.96,5.6178]
[1740131526818,0.04214193,177.98,177.94,0.03742781]
[1740131527216,0.04214193,177.98,177.97,5.6176]
[1740131527412,8.22,178.03,177.94,0.03742781]
[1740131527916,8.22,178.03,178.01,5.6162]
[1740131528515,13.8358,178.03,178.0,0.03819239]
[1740131528721,8.22,178.03,177.93,1.8008]
[1740131529015,5.6173,177.99,177.93,1.8008]
[1740131529221,15.37078714,178.02,177.96,0.04223139]
[1740131529417,0.04051674,177.98,177.96,0.04223139]
[1740131529817,5.6176,177.97,177.96,0.04223139]
[1740131530820,0.04051674,177.98,177.96,0.04223139]
[1740131531018,5.65791674,177.98,177.96,0.04223139]
[1740131531425,0.04051674,177.98,177.96,0.04223139]
[1740131531613,0.04051674,177.98,177.89,1.6794]
[1740131531813,15.37078714,177.95,177.89,1.6794]
[1740131532220,15.37078714,177.98,177.89,1.6794]
[1740131532824,0.04117881,177.95,177.92,0.04090545]
[1740131533818,0.04117881,177.95,177.92,5.65990545]
[1740131534425,0.04117881,177.95,177.92,0.04090545]
[1740131534621,0.04117881,177.95,177.94,5.6186]
[1740131535120,0.04117881,177.95,177.92,0.04090545]
[1740131535321,71.61196595,177.95,177.92,0.04090545]
[1740131535515,15.41196595,177.95,177.92,0.04090545]
[1740131536620,0.04117881,177.95,177.92,0.04090545]
[1740131536821,5.6164,178.01,177.98,5.6173]
[1740131537021,15.37078714,178.02,177.93,1.6814]
[1740131537323,15.37078714,178.02,177.94,1.831]
[1740131537822,0.88452858,178.03,177.94,1.831]
[1740131538026,0.040013,178.0,177.96,0.0401011]
[1740131538418,193.0,178.05,177.96,0.0401011]
[1740131538723,193.0,178.05,178.03,5.6155]
[1740131539020,209.63123098,178.08,177.95,15.37078714]
[1740131539220,209.63123098,178.08,178.05,5.615]
[1740131539624,209.63123098,178.08,178.05,5.65326582]
[1740131540031,209.63123098,178.08,178.05,0.03826582]
[1740131540326,15.37078714,178.08,178.05,0.03826582]
[1740131540626,15.37078714,178.08,178.05,5.65316582]
[1740131541019,15.37078714,178.08,178.05,0.03826582]
[1740131541321,30.37210029,178.14,178.05,0.03826582]
[1740131541526,26.15877023,178.14,178.05,0.03826582]
[1740131541724,26.15877023,178.14,178.08,5.614]
[1740131542024,5.6127,178.13,178.02,1.8057]
[1740131542215,5.6127,178.13,178.09,0.03799373]
[1740131542416,15.37078714,178.14,178.09,0.03799373]
[1740131543021,15.37078714,178.14,178.12,5.6129]
[1740131543227,15.37078714,178.14,178.09,0.03799373]
[1740131544122,8.22,178.19,178.09,0.03799373]
[1740131544123,15.37078714,178.11,178.09,0.03799373]
[1740131544525,5.6135,178.1,178.09,0.03799373]
[1740131546224,5.6149,178.06,178.03,1.7702]
[1740131546427,15.37078714,178.08,177.88,223.73086496]
[1740131546723,15.37078714,178.08,177.97,1.6751]
[1740131547429,0.04013482,178.04,178.01,0.04037902]
[1740131548428,0.04013482,178.04,178.03,5.6155]
[1740131550728,0.04013482,178.04,178.02,5.616]
[1740131550927,0.04013482,178.04,178.01,0.04037902]
[1740131551328,0.04013482,178.04,178.01,5.65647902]
[1740131553030,5.65563482,178.04,178.01,5.65647902]
[1740131553530,0.04013482,178.04,178.01,0.04037902]
[1740131553729,15.37078714,178.03,178.01,0.04037902]
[1740131554930,5.6161,178.02,178.01,0.04037902]
[1740131555131,15.37078714,178.03,177.92,162.47078714]
[1740131555328,15.37078714,178.03,177.93,1.8232]
[1740131555630,5.6161,178.02,177.99,5.6169]
[1740131555931,5.6161,178.02,177.93,1.8232]
[1740131556124,5.6161,178.02,177.98,5.6172]
[1740131556324,0.03923888,177.99,177.98,5.6172]
[1740131556725,0.03923888,177.99,177.96,0.03886334]
[1740131557526,5.65623888,177.99,177.96,0.03886334]
[1740131557730,0.03923888,177.99,177.96,0.03886334]
[1740131558126,0.03923888,177.99,177.96,5.65656334]
[1740131558732,0.03923888,177.99,177.96,0.03886334]
[1740131559221,5.65643888,177.99,177.96,0.03886334]
[1740131559425,0.03923888,177.99,177.96,0.03886334]
[1740131559820,5.6174,177.98,177.96,0.03886334]
[1740131560031,0.03923888,177.99,177.96,0.03886334]
[1740131560236,5.6176,177.97,177.96,0.03886334]
[1740131560727,5.6176,177.97,177.89,3.4256]
[1740131560728,71.56078714,177.97,177.91,5.6193]
[1740131560928,5.6188,177.94,177.91,5.6193]
[1740131561124,5.6188,177.94,177.89,3.4256]
[1740131561329,5.6188,177.94,177.89,1.764]
[1740131561530,15.37078714,177.97,177.89,1.764]
[1740131561921,0.04055083,177.95,177.91,0.03706938]
[1740131562126,5.65905083,177.95,177.91,5.65626938]
[1740131562333,0.04055083,177.95,177.91,5.65626938]
[1740131562729,5.65885083,177.95,177.91,5.65626938]
[1740131563231,0.04055083,177.95,177.93,5.6189]
[1740131563731,0.04055083,177.95,177.91,0.03706938]
[1740131564934,0.04055083,177.95,177.92,5.6191]
[1740131565632,5.65895083,177.95,177.92,5.6191]
[1740131565831,0.04055083,177.95,177.92,5.6191]
[1740131567830,5.65885083,177.95,177.91,0.03706938]
[1740131568027,5.65885083,177.95,177.91,5.65656938]
[1740131568231,0.04055083,177.95,177.91,0.03706938]
[1740131568433,5.619,177.93,177.91,0.03706938]
[1740131569744,15.37078714,177.94,177.91,0.03706938]
[1740131569936,5.6192,177.92,177.91,0.03706938]
[1740131571039,56.21,177.92,177.85,1.708]
[1740131571237,20.99068714,177.9,177.85,1.708]
[1740131571433,15.37078714,177.9,177.86,5.6209]
[1740131571639,15.37078714,177.9,177.82,1.8366]
[1740131571840,5.6207,177.88,177.84,5.6217]
[1740131572243,5.66266578,177.88,177.84,5.66249437]
[1740131572541,0.04196578,177.88,177.84,5.66249437]
[1740131572943,5.6208,177.87,177.84,0.04079437]
[1740131573138,0.04196578,177.88,177.84,0.04079437]
[1740131573841,15.37078714,177.87,177.84,0.04079437]
[1740131575042,15.37078714,177.87,177.79,1.738]
[1740131575237,5.6223,177.83,177.79,1.738]
[1740131575437,5.6223,177.83,177.79,7.3611]
[1740131575633,15.37078714,177.81,177.75,3.4262]
[1740131576039,15.37078714,177.81,177.76,5.624]
[1740131576343,0.03737055,177.8,177.76,0.03661475]
[1740131576746,5.66047055,177.8,177.76,0.03661475]
[1740131577040,0.03737055,177.8,177.76,0.03661475]
[1740131577939,0.03737055,177.8,177.76,5.66061475]
[1740131578745,5.66047055,177.8,177.76,0.03661475]
[1740131579145,0.03737055,177.8,177.76,0.03661475]
[1740131579344,15.37078714,177.78,177.76,0.03661475]
[1740131579740,20.99468714,177.78,177.76,0.03661475]
[1740131580848,15.37078714,177.78,177.76,0.03661475]
[1740131581044,5.624,177.77,177.76,0.03661475]
[1740131581343,71.62078714,177.78,177.76,0.03661475]
[1740131581948,15.37078714,177.78,177.76,0.03661475]
[1740131582347,5.624,177.77,177.76,0.03661475]
[1740131582646,15.37078714,177.78,177.69,1.7799]
[1740131582843,8.23737055,177.8,177.69,1.7799]
[1740131582844,15.37078714,177.73,177.69,7.4063]
[1740131583049,15.37078714,177.73,177.67,1.7072]
[1740131583450,15.37078714,177.73,177.69,5.6263]
[1740131583854,15.40685,177.73,177.69,5.66695073]
[1740131584055,21.03215,177.73,177.69,5.66695073]
[1740131584759,5.6256,177.72,177.69,5.66695073]
[1740131585153,15.40685,177.73,177.69,5.66695073]
[1740131585352,21.03235,177.73,177.69,5.66695073]